bitfinex-derivatives/quotes_ETHF0:USTF0_20210110
["timestamp","ask_amount","ask_price","bid_price","bid_amount"]
[1610289054951,12.42570339,1311.8,1311.7,15.72019]
[1610289055152,15.22949114,1311.8,1311.7,15.72019]
[1610289055352,6.81337775,1311.8,1311.7,15.72019]
[1610289055654,13.35927414,1311.8,1311.7,15.72019]
[1610289056354,6.81337775,1311.8,1311.7,15.72019]
[1610289056957,2.80378775,1311.8,1311.7,15.72019]
[1610289057157,9.34929606,1311.8,1311.7,15.72019]
[1610289057358,4.67665585,1311.8,1311.7,15.72019]
[1610289057758,7.47981239,1311.8,1311.7,15.72019]
[1610289058161,4.67665585,1311.8,1311.7,15.72019]
[1610289058659,4.67652365,1311.9,1311.8,10.0]
[1610289058858,6.54519111,1312.0,1311.8,10.0]
[1610289059058,6.54451535,1312.1,1311.9,10.0]
[1610289059458,4.6760427,1312.0,1311.9,10.0]
[1610289059658,4.6760427,1312.0,1311.8,10.0]
[1610289059858,4.6760427,1312.0,1311.9,10.0]
[1610289059859,9.11312135,1312.0,1311.9,10.0]
[1610289060058,1.49472006,1312.0,1311.9,10.0]
[1610289060258,9.11303753,1312.1,1311.8,10.0]
[1610289060458,9.11303753,1312.1,1311.7,5.72019]
[1610289060665,9.11303753,1312.1,1311.9,10.0]
[1610289060862,9.11303753,1312.1,1312.0,4.00959]
[1610289061064,9.11303753,1312.1,1312.0,5.69749]
[1610289061464,9.11231143,1312.2,1312.0,15.69749]
[1610289061863,9.11231143,1312.2,1312.1,10.0]
[1610289062867,13.12190143,1312.2,1312.1,10.0]
[1610289063268,11.48784211,1312.2,1312.1,10.0]
[1610289063467,6.81218292,1312.2,1312.1,10.0]
[1610289063866,11.48790614,1312.2,1312.1,10.0]
[1610289064065,6.81218292,1312.2,1312.1,10.0]
[1610289064265,13.35713205,1312.2,1312.1,10.0]
[1610289064666,15.22599427,1312.2,1312.1,10.0]
[1610289064866,17.09519535,1312.2,1312.1,10.0]
[1610289065265,6.81218292,1312.2,1312.1,10.0]
[1610289065867,15.22597256,1312.2,1312.1,10.0]
[1610289066465,17.09538328,1312.2,1312.1,10.0]
[1610289066866,6.81218292,1312.2,1312.1,10.0]
[1610289067868,18.39256657,1312.2,1312.1,10.0]
[1610289068268,34.29036129,1312.2,1312.1,10.0]
[1610289069267,18.39256657,1312.2,1312.1,10.0]
[1610289069668,34.28966354,1312.2,1312.1,10.0]
[1610289069869,18.39256657,1312.2,1312.1,10.0]
[1610289070272,23.06562091,1312.2,1312.1,10.0]
[1610289070472,30.54592932,1312.2,1312.1,10.0]
[1610289070873,18.39256657,1312.2,1312.1,10.0]
[1610289071275,9.04918292,1312.2,1312.1,10.0]
[1610289071474,6.81218292,1312.2,1312.1,10.0]
[1610289072275,18.96635331,1312.2,1312.1,10.0]
[1610289072676,6.81218292,1312.2,1312.1,10.0]
[1610289073377,18.9652503,1312.2,1312.1,10.0]
[1610289073580,6.81218292,1312.2,1312.1,10.0]
[1610289073978,9.06188292,1312.2,1312.1,10.0]
[1610289074378,23.08556599,1312.2,1312.1,10.0]
[1610289075178,32.42679692,1312.2,1312.1,10.0]
[1610289075879,18.40311385,1312.2,1312.1,10.0]
[1610289076279,37.09966807,1312.2,1312.1,10.0]
[1610289076478,32.42669776,1312.2,1312.1,10.0]
[1610289077079,23.08546683,1312.2,1312.1,10.0]
[1610289077280,21.21180073,1312.2,1312.1,10.0]
[1610289077480,35.23576753,1312.2,1312.1,10.0]
[1610289078180,21.21180073,1312.2,1312.1,10.0]
[1610289079588,33.36505622,1312.2,1312.1,10.0]
[1610289079785,21.21180073,1312.2,1312.1,10.0]
[1610289083188,13.21180073,1312.2,1312.1,10.0]
[1610289083388,25.36468924,1312.2,1312.1,10.0]
[1610289083789,17.88781674,1312.2,1312.1,10.0]
[1610289083988,25.36359157,1312.2,1312.1,10.0]
[1610289084388,17.88781674,1312.2,1312.1,10.0]
[1610289084788,1.06188292,1312.2,1312.1,10.0]
[1610289084989,8.68218984,1312.2,1312.1,10.0]
[1610289085288,4.00959,1312.2,1312.1,10.0]
[1610289086990,16.16167613,1312.2,1312.1,10.0]
[1610289087291,4.00959,1312.2,1312.1,10.0]
[1610289091998,16.16230292,1312.2,1312.1,10.0]
[1610289093900,4.00959,1312.2,1312.1,10.0]
[1610289094702,16.16152542,1312.2,1312.1,10.0]
[1610289095100,4.00959,1312.2,1312.1,10.0]
[1610289095600,18.03345631,1312.2,1312.1,10.0]
[1610289096000,4.00959,1312.2,1312.1,10.0]
[1610289096803,18.03363835,1312.2,1312.1,10.0]
[1610289098003,29.03363835,1312.2,1312.1,10.0]
[1610289098606,15.00959,1312.2,1312.1,10.0]
[1610289099004,19.6830428,1312.2,1312.1,10.0]
[1610289099307,29.03446971,1312.2,1312.1,10.0]
[1610289101606,15.00959,1312.2,1312.1,10.0]
[1610289102708,27.16344239,1312.2,1312.1,10.0]
[1610289104808,15.00959,1312.2,1312.1,10.0]
[1610289105508,19.68131453,1312.2,1312.1,10.0]
[1610289105908,25.2916468,1312.2,1312.1,10.0]
[1610289107210,15.00959,1312.2,1312.1,10.0]
[1610289108212,25.29169646,1312.2,1312.1,10.0]
[1610289110518,15.00959,1312.2,1312.1,10.0]
[1610289110816,25.29164309,1312.2,1312.1,10.0]
[1610289111819,15.00959,1312.2,1312.1,10.0]
[1610289112224,29.96325744,1312.2,1312.1,10.0]
[1610289112624,15.00959,1312.2,1312.1,10.0]
[1610289112824,19.68129121,1312.2,1312.1,10.0]
[1610289113124,15.00959,1312.2,1312.1,10.0]
[1610289113424,17.81262867,1312.2,1312.1,10.0]
[1610289116126,28.09472665,1312.2,1312.1,10.0]
[1610289116525,17.81262867,1312.2,1312.1,10.0]
[1610289117126,29.96499005,1312.2,1312.1,10.0]
[1610289119626,17.81262867,1312.2,1312.1,10.0]
[1610289121827,29.96507587,1312.2,1312.1,10.0]
[1610289122629,17.81262867,1312.2,1312.1,10.0]
[1610289123528,31.83727881,1312.2,1312.1,10.0]
[1610289125930,17.81262867,1312.2,1312.1,10.0]
[1610289127031,31.83723833,1312.2,1312.1,10.0]
[1610289127431,17.81262867,1312.2,1312.1,10.0]
[1610289127732,36.5109825,1312.2,1312.1,10.0]
[1610289128131,31.8375624,1312.2,1312.1,10.0]
[1610289128431,36.51097425,1312.2,1312.1,10.0]
[1610289128732,31.8375624,1312.2,1312.1,10.0]
[1610289129431,17.81262867,1312.2,1312.1,10.0]
[1610289129732,31.83756178,1312.2,1312.1,10.0]
[1610289131635,17.81262867,1312.2,1312.1,10.0]
[1610289132036,22.4861986,1312.2,1312.1,10.0]
[1610289132235,31.83798595,1312.2,1312.1,10.0]
[1610289132636,17.81262867,1312.2,1312.1,10.0]
[1610289132837,22.48613053,1312.2,1312.1,10.0]
[1610289133236,17.81262867,1312.2,1312.1,10.0]
[1610289134239,59.96423003,1312.2,1312.1,10.0]
[1610289134841,52.4863215,1312.2,1312.1,10.0]
[1610289135142,75.86322448,1312.2,1312.1,10.0]
[1610289136140,69.30989035,1312.2,1312.1,10.0]
[1610289137740,87.07974458,1312.2,1312.1,10.0]
[1610289138940,88.58454458,1312.2,1312.1,10.0]
[1610289139140,70.81469035,1312.2,1312.1,10.0]
[1610289139641,69.30989035,1312.2,1312.1,10.0]
[1610289140841,70.85119035,1312.2,1312.1,5.32368469]
[1610289141241,69.30989035,1312.2,1312.1,5.32368469]
[1610289142240,70.81459035,1312.2,1312.1,5.32368469]
[1610289142443,69.30989035,1312.2,1312.1,5.32368469]
[1610289142841,69.30989035,1312.2,1309.6,2.4914]
[1610289143246,6.55352649,1310.4,1310.3,10.0]
[1610289143444,8.07842649,1310.4,1310.3,10.0]
[1610289143644,1.5249,1310.4,1309.6,2.4914]
[1610289144045,8.65865011,1310.0,1309.7,10.0]
[1610289144544,8.65865011,1310.0,1309.8,10.0]
[1610289144943,8.65865011,1310.0,1309.7,10.0]
[1610289145145,4.68254467,1310.1,1309.6,2.4914]
[1610289145146,8.65912664,1309.9,1309.6,2.4914]
[1610289145345,4.00959,1309.7,1309.6,2.4914]
[1610289145748,4.00959,1309.7,1309.6,12.4914]
[1610289146547,5.51519,1309.7,1309.6,12.4914]
[1610289146746,4.00959,1309.7,1309.6,12.4914]
[1610289147348,4.00959,1309.9,1309.6,16.50099]
[1610289147550,8.65748683,1310.1,1309.6,16.50099]
[1610289147749,8.65748683,1310.1,1309.7,10.0]
[1610289147947,10.16969937,1310.3,1309.6,6.50099]
[1610289148146,8.65639937,1310.3,1309.8,10.0]
[1610289148350,6.55179061,1310.7,1309.8,10.0]
[1610289148548,6.55179061,1310.7,1309.7,10.0]
[1610289148749,8.65620811,1310.4,1309.6,6.50099]
[1610289148949,8.65620811,1310.4,1309.8,10.0]
[1610289149150,10.19240811,1310.4,1309.8,10.0]
[1610289149352,4.00959,1310.1,1309.9,4.00959]
[1610289149950,4.00959,1310.1,1310.0,10.0]
[1610289150150,4.00959,1310.1,1310.0,12.3742]
[1610289150953,8.65552977,1310.5,1310.0,12.3742]
[1610289151352,8.65552977,1310.5,1310.3,4.00959]
[1610289151551,8.65552977,1310.5,1310.3,5.52799]
[1610289151753,57.48143328,1310.7,1310.4,10.0]
[1610289151951,57.48143328,1310.7,1310.3,5.52799]
[1610289152152,57.48143328,1310.7,1310.5,10.0]
[1610289152352,57.48143328,1310.7,1310.4,10.0]
[1610289152653,57.48143328,1310.7,1310.6,10.0]
[1610289152852,58.98483328,1310.7,1310.6,11.9757]
[1610289153054,50.3305,1310.7,1310.6,1.9757]
[1610289153253,50.3305,1310.7,1310.6,11.9757]
[1610289153455,50.3305,1310.7,1310.6,15.98529]
[1610289153654,48.8271,1310.7,1310.6,15.98529]
[1610289154754,50.3645,1310.7,1310.6,15.98529]
[1610289154955,48.8271,1310.7,1310.6,15.98529]
[1610289156958,50.3612,1310.7,1310.6,15.98529]
[1610289158562,48.8271,1310.7,1310.6,15.98529]
[1610289159164,12.65922548,1311.5,1310.6,15.98529]
[1610289159360,12.65922548,1311.5,1311.2,4.00959]
[1610289159661,14.19402548,1311.5,1311.2,4.00959]
[1610289159862,8.64963434,1311.4,1311.2,1.6452]
[1610289160060,8.64963434,1311.4,1311.3,10.0]
[1610289160262,8.64963434,1311.4,1311.2,1.6452]
[1610289160562,7.48182426,1311.4,1311.3,10.0]
[1610289161364,9.00802426,1311.4,1311.3,10.0]
[1610289161763,7.48182426,1311.4,1311.3,10.0]
[1610289161965,9.35200566,1311.4,1311.3,10.0]
[1610289162366,6.54807402,1311.4,1311.3,10.0]
[1610289162566,9.35235508,1311.4,1311.3,10.0]
[1610289162966,10.89345508,1311.4,1311.3,10.0]
[1610289164669,4.34538106,1311.4,1311.3,10.0]
[1610289164869,2.80428106,1311.4,1311.3,10.0]
[1610289165069,9.35257801,1311.4,1311.3,10.0]
[1610289166071,10.87357801,1311.4,1311.3,10.0]
[1610289166471,9.35257801,1311.4,1311.3,10.0]
[1610289166674,11.22298575,1311.4,1311.3,10.0]
[1610289167072,13.09246564,1311.4,1311.3,10.0]
[1610289167473,10.85747995,1311.4,1311.3,14.00959]
[1610289167874,8.987558,1311.4,1311.3,14.00959]
[1610289168074,8.64947182,1311.4,1311.3,14.00959]
[1610289168780,12.65868699,1311.5,1311.3,14.00959]
[1610289169175,12.65868699,1311.5,1311.4,10.0]
[1610289169375,8.64909699,1311.5,1311.4,10.0]
[1610289169577,8.64810362,1311.6,1311.4,10.0]
[1610289169976,8.64810362,1311.6,1311.5,10.0]
[1610289170376,8.6476428,1311.7,1311.5,2.0186]
[1610289170576,8.6476428,1311.7,1311.5,12.0186]
[1610289170976,9.11479295,1311.7,1311.5,2.0186]
[1610289171176,9.11479295,1311.7,1311.6,10.0]
[1610289171378,13.12371309,1311.8,1311.6,10.0]
[1610289171776,13.12371309,1311.8,1311.7,10.0]
[1610289171977,4.00959,1311.8,1311.6,10.0]
[1610289172377,8.32556243,1311.8,1311.7,10.0]
[1610289172576,6.81256243,1311.8,1311.7,10.0]
[1610289172777,8.68595744,1311.8,1311.6,10.0]
[1610289172977,6.81261355,1311.8,1311.6,10.0]
[1610289173178,6.81261355,1311.8,1311.7,10.0]
[1610289173377,6.81261355,1311.8,1311.7,14.00959]
[1610289173378,8.68592377,1311.8,1311.7,14.00959]
[1610289173577,8.68592377,1311.8,1311.7,4.00959]
[1610289173779,13.0008666,1311.8,1311.7,4.00959]
[1610289173980,13.0008666,1311.8,1311.7,10.0]
[1610289174180,11.4889666,1311.8,1311.7,10.0]
[1610289174580,13.35846609,1311.8,1311.7,10.0]
[1610289174780,9.34887609,1311.8,1311.7,10.0]
[1610289174979,9.02362044,1311.8,1311.7,10.0]
[1610289175380,5.55399,1311.8,1311.7,10.0]
[1610289175579,1.5444,1311.8,1311.7,10.0]
[1610289176483,9.11353212,1311.9,1311.7,10.0]
[1610289176681,9.11353212,1311.9,1311.8,10.0]
[1610289176883,4.67588193,1312.0,1311.8,11.7836]
[1610289177082,7.47890527,1311.9,1311.8,1.7836]
[1610289177382,8.68565757,1311.9,1311.8,5.79319]
[1610289177581,10.22655757,1311.9,1311.8,1.7836]
[1610289177782,8.35332974,1311.9,1311.8,11.7836]
[1610289177982,11.48850639,1311.9,1311.8,58.0629]
[1610289178781,6.81242974,1311.9,1311.8,58.0629]
[1610289178981,15.22719641,1311.9,1311.8,58.0629]
[1610289183081,6.81242974,1311.9,1311.8,58.0629]
[1610289183681,15.22751699,1311.9,1311.8,58.0629]
[1610289184483,6.81242974,1311.9,1311.8,58.0629]
[1610289184685,13.35795822,1311.9,1311.8,58.0629]
[1610289184982,10.55511848,1311.9,1311.8,58.0629]
[1610289185383,11.48902978,1311.9,1311.8,58.0629]
[1610289185983,13.01512978,1311.9,1311.8,58.0629]
[1610289186384,11.48902978,1311.9,1311.8,58.0629]
[1610289186983,13.01362978,1311.9,1311.8,58.0629]
[1610289187386,8.33722802,1311.9,1311.8,11.7836]
[1610289189488,11.48888379,1311.9,1311.8,11.7836]
[1610289190186,6.81262802,1311.9,1311.8,11.7836]
[1610289190887,13.35840031,1311.9,1311.8,11.7836]
[1610289191288,14.88560031,1311.9,1311.8,11.7836]
[1610289191688,8.33982802,1311.9,1311.8,11.7836]
[1610289192388,13.01621148,1311.9,1311.8,11.7836]
[1610289193193,12.79301148,1311.9,1311.8,11.7836]
[1610289193494,8.11662802,1311.9,1311.8,11.7836]
[1610289193695,6.58942802,1311.9,1311.8,11.7836]
[1610289194195,13.13510239,1311.9,1311.8,11.7836]
[1610289194795,14.65710239,1311.9,1311.8,11.7836]
[1610289195998,8.11142802,1311.9,1311.8,11.7836]
[1610289196599,6.58942802,1311.9,1311.8,11.7836]
[1610289197100,13.13500216,1311.9,1311.8,11.7836]
[1610289197299,6.58942802,1311.9,1311.8,11.7836]
[1610289197600,12.78488135,1311.9,1311.8,11.7836]
[1610289198199,11.26608135,1311.9,1311.8,11.7836]
[1610289199201,12.78048135,1311.9,1311.8,11.7836]
[1610289199603,11.26608135,1311.9,1311.8,11.7836]
[1610289200604,12.81198135,1311.9,1311.8,11.7836]
[1610289201004,11.26608135,1311.9,1311.8,11.7836]
[1610289201405,13.13544373,1311.9,1311.8,11.7836]
[1610289201810,15.00523671,1311.9,1311.8,11.7836]
[1610289202209,16.875096,1311.9,1311.8,11.7836]
[1610289202407,6.58942802,1311.9,1311.8,11.7836]
[1610289203309,8.10322802,1311.9,1311.8,11.7836]
[1610289203510,6.58942802,1311.9,1311.8,11.7836]
[1610289204410,8.10152802,1311.9,1311.8,11.7836]
[1610289205010,6.58942802,1311.9,1311.8,11.7836]
[1610289206013,8.10272802,1311.9,1311.8,11.7836]
[1610289206613,6.58942802,1311.9,1311.8,11.7836]
[1610289207214,18.74592169,1311.9,1311.8,11.7836]
[1610289207517,6.58942802,1311.9,1311.8,11.7836]
[1610289207715,8.11252802,1311.9,1311.8,11.7836]
[1610289208215,18.74615206,1311.9,1311.8,11.7836]
[1610289209115,20.27225206,1311.9,1311.8,11.7836]
[1610289209718,18.74615206,1311.9,1311.8,11.7836]
[1610289211617,20.28125206,1311.9,1311.8,11.7836]
[1610289212525,18.74615206,1311.9,1311.8,11.7836]
[1610289213418,20.26865206,1311.9,1311.8,11.7836]
[1610289213718,18.74615206,1311.9,1311.8,11.7836]
[1610289214720,20.28725206,1311.9,1311.8,11.7836]
[1610289215120,18.74615206,1311.9,1311.8,11.7836]
[1610289215321,18.74615206,1311.9,1311.8,10.0]
[1610289216326,20.26525206,1311.9,1311.8,10.0]
[1610289217327,18.74615206,1311.9,1311.8,10.0]
[1610289217828,23.42052382,1311.9,1311.8,10.0]
[1610289218528,11.26379978,1311.9,1311.8,10.0]
[1610289219230,23.4217984,1311.9,1311.8,10.0]
[1610289220332,11.26379978,1311.9,1311.8,10.0]
[1610289222836,41.26379978,1311.9,1311.8,10.0]
[1610289224235,55.29298233,1311.9,1311.8,10.0]
[1610289224636,25.29298233,1311.9,1311.8,10.0]
[1610289225038,34.63797233,1311.9,1311.8,10.0]
[1610289225838,29.96360057,1311.9,1311.8,10.0]
[1610289226337,6.58942802,1311.9,1311.8,10.0]
[1610289227938,18.74708877,1311.9,1311.8,10.0]
[1610289230943,6.58942802,1311.9,1311.8,10.0]
[1610289233340,18.74763441,1311.9,1311.8,10.0]
[1610289239845,6.58942802,1311.9,1311.8,10.0]
[1610289241449,16.87577385,1311.9,1311.8,10.0]
[1610289241647,16.87577385,1311.9,1311.8,14.00959]
[1610289241847,15.00562306,1311.9,1311.8,10.0]
[1610289242146,6.58942802,1311.9,1311.8,10.0]
[1610289242947,13.1357107,1311.9,1311.8,10.0]
[1610289243247,11.26664604,1311.9,1311.8,10.0]
[1610289243548,6.58942802,1311.9,1311.8,10.0]
[1610289243749,2.80303802,1311.9,1311.8,14.00959]
[1610289243948,7.47978765,1311.9,1311.8,14.00959]
[1610289244349,7.47987007,1312.0,1311.8,14.00959]
[1610289244750,9.11489519,1311.9,1311.8,4.00959]
[1610289245150,9.11489519,1311.9,1311.8,14.00959]
[1610289247250,9.11489519,1311.9,1311.8,10.0]
[1610289247851,13.12448519,1311.9,1311.8,10.0]
[1610289248353,6.81275501,1311.9,1311.8,10.0]
[1610289249352,11.48960164,1311.9,1311.8,10.0]
[1610289249753,13.35902288,1311.9,1311.8,10.0]
[1610289249953,15.22855771,1311.9,1311.8,10.0]
[1610289252757,6.81275501,1311.9,1311.8,10.0]
[1610289253157,13.35871976,1311.9,1311.8,10.0]
[1610289253357,11.48941096,1311.9,1311.8,10.0]
[1610289253757,6.81275501,1311.9,1311.8,10.0]
[1610289254160,11.48945932,1311.9,1311.8,10.0]
[1610289255259,6.81275501,1311.9,1311.8,10.0]
[1610289255458,13.12439896,1311.9,1311.8,10.0]
[1610289255859,6.81274927,1311.9,1311.8,10.0]
[1610289256060,11.48948771,1311.9,1311.8,10.0]
[1610289256867,11.48948771,1311.9,1311.8,62.8916]
[1610289257665,13.12408954,1311.9,1311.8,62.8916]
[1610289257864,13.12408954,1311.9,1311.8,66.90119]
[1610289258067,6.81264519,1311.9,1311.8,66.90119]
[1610289258265,13.12412976,1311.9,1311.8,66.90119]
[1610289258765,6.81269797,1311.9,1311.8,66.90119]
[1610289260165,6.81269797,1311.9,1311.8,62.8916]
[1610289260966,11.48928832,1311.9,1311.8,62.8916]
[1610289261271,13.35850569,1311.9,1311.8,62.8916]
[1610289262268,15.22815647,1311.9,1311.8,62.8916]
[1610289262468,15.22815647,1311.9,1311.8,10.0]
[1610289264869,6.81269797,1311.9,1311.8,10.0]
[1610289265268,15.22791212,1311.9,1311.8,10.0]
[1610289265570,6.81269797,1311.9,1311.8,10.0]
[1610289267973,15.22801318,1311.9,1311.8,10.0]
[1610289271583,6.81269797,1311.9,1311.8,10.0]
[1610289271983,15.84379797,1311.9,1311.8,10.0]
[1610289272183,6.81269797,1311.9,1311.8,10.0]
[1610289272384,9.22779797,1311.9,1311.8,10.0]
[1610289272583,39.22779797,1311.9,1311.8,10.0]
[1610289272783,43.90162429,1311.9,1311.8,10.0]
[1610289272984,56.05848726,1311.9,1311.8,10.0]
[1610289274385,43.90162429,1311.9,1311.8,10.0]
[1610289274987,56.0598104,1311.9,1311.8,10.0]
[1610289275685,43.90162429,1311.9,1311.8,10.0]
[1610289278688,13.90162429,1311.9,1311.8,10.0]
[1610289279090,21.38538848,1311.9,1311.8,10.0]
[1610289279390,6.42469,1311.9,1311.8,10.0]
[1610289279892,9.22890996,1311.9,1311.8,10.0]
[1610289280094,13.90252526,1311.9,1311.8,10.0]
[1610289280592,9.22890996,1311.9,1311.8,10.0]
[1610289280792,19.51494067,1311.9,1311.8,10.0]
[1610289281892,21.01914067,1311.9,1311.8,10.0]
[1610289282093,10.73310996,1311.9,1311.8,10.0]
[1610289282494,19.14902942,1311.9,1311.8,10.0]
[1610289282796,17.64482942,1311.9,1311.8,10.0]
[1610289283796,15.77515129,1311.9,1311.8,10.0]
[1610289284196,17.64446291,1311.9,1311.8,10.0]
[1610289284598,9.22890996,1311.9,1311.8,10.0]
[1610289284797,21.05685231,1311.9,1311.8,10.0]
[1610289285699,19.51475231,1311.9,1311.8,10.0]
[1610289285898,9.22890996,1311.9,1311.8,10.0]
[1610289287100,21.38581132,1311.9,1311.8,10.0]
[1610289288001,22.91541132,1311.9,1311.8,10.0]
[1610289288602,21.38581132,1311.9,1311.8,10.0]
[1610289289303,51.38581132,1311.9,1311.8,10.0]
[1610289289705,52.93211132,1311.9,1311.8,10.0]
[1610289289904,56.05990247,1311.9,1311.8,10.0]
[1610289290707,65.04670247,1311.9,1311.8,10.0]
[1610289290906,66.56280247,1311.9,1311.8,10.0]
[1610289291306,72.52525144,1311.9,1311.8,10.0]
[1610289291706,65.04670247,1311.9,1311.8,10.0]
[1610289292406,66.58290247,1311.9,1311.8,10.0]
[1610289292806,74.06136516,1311.9,1311.8,10.0]
[1610289293711,72.52516516,1311.9,1311.8,10.0]
[1610289294510,65.04670247,1311.9,1311.8,10.0]
[1610289294710,35.04670247,1311.9,1311.8,10.0]
[1610289295311,30.37261132,1311.9,1311.8,10.0]
[1610289295710,31.90941132,1311.9,1311.8,10.0]
[1610289296512,30.37261132,1311.9,1311.8,10.0]
[1610289297512,31.89711132,1311.9,1311.8,10.0]
[1610289297812,74.05043302,1311.9,1311.8,10.0]
[1610289298113,60.36903166,1311.9,1311.8,10.0]
[1610289298514,52.89006446,1311.9,1311.8,10.0]
[1610289298816,60.36924748,1311.9,1311.8,10.0]
[1610289299215,54.40426446,1311.9,1311.8,10.0]
[1610289299516,61.88345483,1311.9,1311.8,10.0]
[1610289300116,60.36925483,1311.9,1311.8,10.0]
[1610289300415,52.89006446,1311.9,1311.8,10.0]
[1610289301217,54.40886446,1311.9,1311.8,10.0]
[1610289301417,24.40886446,1311.9,1311.8,10.0]
[1610289301816,19.73450996,1311.9,1311.8,10.0]
[1610289302116,24.40890281,1311.9,1311.8,10.0]
[1610289302318,22.89010281,1311.9,1311.8,10.0]
[1610289302516,18.21570996,1311.9,1311.8,10.0]
[1610289302716,48.21570996,1311.9,1311.8,10.0]
[1610289302917,52.89063009,1311.9,1311.8,10.0]
[1610289303318,68.7926575,1311.9,1311.8,10.0]
[1610289303520,70.2969575,1311.9,1311.8,10.0]
[1610289303920,61.87712377,1311.9,1311.8,10.0]
[1610289304319,60.37282377,1311.9,1311.8,10.0]
[1610289304519,49.3034,1311.8,1309.6,1.7479]
[1610289304719,30.0,1311.7,1309.6,1.7479]
[1610289305120,17.78109508,1311.5,1311.2,10.0]
[1610289305320,32.2198,1311.4,1309.6,1.7479]
[1610289305519,32.2198,1311.4,1308.5,0.22649057]
[1610289305720,39.70610569,1311.4,1311.3,10.0]
[1610289305920,39.70610569,1311.4,1310.6,10.0]
[1610289306219,65.91719943,1311.4,1308.7,1.7974]
[1610289306422,4.00959,1310.1,1308.7,1.7974]
[1610289306821,5.99339,1310.1,1310.0,32.90076335]
[1610289307025,8.80121009,1310.1,1310.0,32.90076335]
[1610289307622,19.10035752,1310.1,1310.0,32.90076335]
[1610289308026,8.80121009,1310.1,1310.0,32.90076335]
[1610289308225,15.35551036,1310.1,1310.0,32.90076335]
[1610289309227,8.80121009,1310.1,1310.0,32.90076335]
[1610289309428,17.22745218,1310.1,1310.0,32.90076335]
[1610289309628,8.80121009,1310.1,1310.0,32.90076335]
[1610289310229,19.10015782,1310.1,1310.0,32.90076335]
[1610289310631,8.80121009,1310.1,1310.0,32.90076335]
[1610289310832,50.97421334,1310.1,1310.0,32.90076335]
[1610289311030,20.97421334,1310.1,1310.0,32.90076335]
[1610289311231,13.48185327,1310.1,1310.0,32.90076335]
[1610289311431,22.84885626,1310.1,1310.0,32.90076335]
[1610289311834,8.80141687,1310.1,1310.0,32.90076335]
[1610289312232,8.80141687,1310.1,1310.0,23.47036335]
[1610289312432,8.80141687,1310.1,1310.0,17.00056335]
[1610289312632,8.80141687,1310.1,1310.0,7.00426335]
[1610289312833,26.59944456,1310.1,1310.0,7.00426335]
[1610289313432,56.59944456,1310.1,1310.0,7.00426335]
[1610289313631,38.80141687,1310.1,1310.0,7.00426335]
[1610289313837,61.28245574,1310.1,1310.0,7.00426335]
[1610289314235,43.4839911,1310.1,1308.0,1.8278]
[1610289314633,4.00959,1308.1,1308.0,1.8278]
[1610289314832,8.69862262,1308.1,1307.7,2.3536]
[1610289315032,8.69862262,1308.1,1308.0,10.0]
[1610289315232,11.50916497,1308.1,1308.0,10.0]
[1610289315431,13.03576497,1308.1,1307.8,10.0]
[1610289315633,6.82013235,1308.1,1307.9,10.0]
[1610289315832,4.00959,1308.1,1307.9,10.0]
[1610289316032,4.00959,1308.1,1307.8,10.0]
[1610289316233,4.00959,1308.1,1308.0,10.0]
[1610289316634,4.00959,1308.1,1307.9,10.0]
[1610289317034,4.00959,1308.1,1308.0,10.0]
[1610289318235,9.13739467,1308.4,1308.0,12.0082]
[1610289318438,9.13739467,1308.4,1308.1,10.0]
[1610289318635,4.00959,1308.2,1308.1,14.00959]
[1610289318835,4.00959,1308.2,1308.0,2.0082]
[1610289319236,4.00959,1308.2,1308.1,10.0]
[1610289321440,13.14858541,1308.2,1308.1,10.0]
[1610289321839,11.50950038,1308.2,1308.1,10.0]
[1610289322440,6.8202997,1308.2,1308.1,10.0]
[1610289323243,13.3840407,1308.2,1308.1,10.0]
[1610289323442,10.573331,1308.2,1308.1,10.0]
[1610289323843,13.38425157,1308.2,1308.1,10.0]
[1610289324244,11.50996296,1308.2,1308.1,10.0]
[1610289324645,8.33441057,1308.2,1308.1,10.0]
[1610289325043,6.82051057,1308.2,1308.1,10.0]
[1610289325244,11.50971743,1308.2,1308.1,10.0]
[1610289326146,13.02581743,1308.2,1308.1,10.0]
[1610289328246,4.00959,1308.2,1308.1,10.0]
[1610289329447,5.54569,1308.2,1308.1,10.0]
[1610289329749,4.00959,1308.2,1308.1,10.0]
[1610289330848,5.53759,1308.2,1308.1,10.0]
[1610289331048,4.00959,1308.2,1308.1,10.0]
[1610289331852,13.14839423,1308.2,1308.1,10.0]
[1610289332049,14.68979423,1308.2,1308.1,10.0]
[1610289332451,10.24029696,1308.2,1308.1,10.0]
[1610289332649,8.69889696,1308.2,1308.1,10.0]
[1610289332851,6.82038986,1308.2,1308.1,10.0]
[1610289333450,13.38398825,1308.2,1308.1,10.0]
[1610289333649,14.90428825,1308.2,1308.1,10.0]
[1610289333849,10.57318839,1308.2,1308.1,10.0]
[1610289334049,13.38415625,1308.2,1308.1,10.0]
[1610289334349,6.82055786,1308.2,1308.1,10.0]
[1610289335550,15.2596414,1308.2,1308.1,10.0]
[1610289335950,4.00959,1308.2,1308.1,10.0]
[1610289336148,5.53669,1308.2,1308.1,10.0]
[1610289336350,8.34873787,1308.2,1308.1,10.0]
[1610289336949,17.71891322,1308.2,1308.1,10.0]
[1610289337151,28.38299096,1308.2,1308.1,10.0]
[1610289337548,16.19181322,1308.2,1308.1,10.0]
[1610289337750,33.07037027,1308.2,1308.1,10.0]
[1610289338149,17.73261322,1308.2,1308.1,10.0]
[1610289338550,31.80196188,1308.2,1308.1,10.0]
[1610289338750,30.26116188,1308.2,1308.1,10.0]